bitfinex-derivatives/quotes_ETHF0:USTF0_20241129
["timestamp","ask_amount","ask_price","bid_price","bid_amount"]
[1732892472298,0.27501,3633.9,3633.7,0.04]
[1732892472506,0.27501,3633.8,3633.7,0.04]
[1732892473000,0.6807,3634.2,3633.7,0.04]
[1732892473303,2.6181814,3633.9,3633.7,0.04]
[1732892473605,0.27499,3634.2,3633.7,0.31501]
[1732892474098,2.6181814,3634.7,3633.7,3.2478]
[1732892474301,2.6181814,3634.7,3633.8,0.8412]
[1732892474503,2.6181814,3634.7,3634.1,0.27498]
[1732892474701,2.6181814,3634.7,3634.1,0.61]
[1732892474907,0.27497,3634.4,3634.1,0.61]
[1732892475101,0.27497,3634.4,3634.1,0.88498]
[1732892475102,3.2078,3634.4,3634.1,0.88498]
[1732892475302,2.6181814,3634.7,3634.1,0.61]
[1732892475500,2.6181814,3634.7,3633.9,1.73]
[1732892475799,2.8931314,3634.7,3634.2,0.27498]
[1732892476005,2.6181814,3634.7,3634.3,0.27497]
[1732892476197,2.6181814,3634.7,3634.2,3.2078]
[1732892476410,2.6181814,3634.7,3634.5,0.27495]
[1732892476607,2.6181814,3634.7,3634.2,3.2078]
[1732892477104,2.6181814,3634.7,3634.3,0.27497]
[1732892477303,0.27495,3634.6,3634.2,3.2078]
[1732892477808,0.27495,3634.6,3633.9,1.73]
[1732892477809,0.27497,3634.4,3633.9,2.005]
[1732892478003,0.27497,3634.4,3633.9,2.935]
[1732892478197,2.6181814,3634.7,3633.9,2.935]
[1732892478198,3.2078,3634.5,3633.9,1.8302]
[1732892478401,0.27498,3634.3,3633.9,1.8302]
[1732892478705,0.27497,3634.4,3633.9,1.8302]
[1732892478908,0.27497,3634.4,3633.9,2.1052]
[1732892479404,0.27497,3634.4,3633.9,1.8302]
[1732892479606,0.27499,3634.1,3633.9,1.8302]
[1732892479801,0.27498,3634.2,3633.9,1.8302]
[1732892480198,3.2078,3634.5,3633.9,1.8302]
[1732892480406,2.8931514,3634.3,3633.9,1.8302]
[1732892480612,0.27498,3634.2,3633.9,1.8302]
[1732892481005,0.27499,3634.0,3633.9,0.93]
[1732892481206,0.275,3633.9,3633.4,3.2078]
[1732892481408,0.27498,3634.2,3633.4,3.4178]
[1732892481605,2.6181814,3634.3,3633.4,3.4178]
[1732892481909,0.275,3633.9,3633.4,3.4178]
[1732892482406,2.6181814,3634.3,3633.4,3.4178]
[1732892483007,0.27498,3634.2,3633.5,0.27503]
[1732892483310,0.275,3634.0,3633.5,3.22503]
[1732892483516,2.6181814,3634.3,3633.6,0.27502]
[1732892483708,2.6181814,3634.3,3633.6,2.78]
[1732892484310,0.27501,3633.8,3633.6,2.78]
[1732892484812,0.96243,3634.2,3633.6,2.78]
[1732892485011,2.6181814,3634.3,3633.6,2.78]
[1732892485208,0.275,3633.9,3633.6,2.78]
[1732892485413,0.27501,3633.8,3633.6,2.78]
[1732892485716,2.6181814,3633.9,3633.6,2.78]
[1732892485918,0.27501,3633.7,3633.6,2.78]
[1732892486211,0.27499,3634.0,3633.6,2.78]
[1732892486509,5.14019,3634.5,3633.6,2.78]
[1732892486510,0.27498,3634.2,3633.8,3.2078]
[1732892486711,2.6181814,3634.7,3633.8,10.2878]
[1732892487312,0.27495,3634.6,3634.1,0.27498]
[1732892487504,2.6181814,3634.7,3634.2,0.8652]
[1732892488407,0.27495,3634.6,3634.2,0.8652]
[1732892488608,2.89340798,3634.7,3634.3,0.8919]
[1732892488609,2.6181814,3634.7,3634.3,0.8919]
[1732892488908,2.6181814,3634.7,3634.4,0.27496]
[1732892489108,2.6181814,3634.7,3634.3,0.8919]
[1732892489415,0.27495,3634.6,3634.3,3.4119]
[1732892489610,2.8931214,3634.7,3634.3,3.4119]
[1732892489911,2.6181814,3634.7,3634.3,3.4119]
[1732892490213,2.6181814,3634.7,3634.3,3.68686]
[1732892490807,2.6181814,3634.7,3634.4,0.27496]
[1732892491003,2.6181814,3634.7,3634.3,4.0997]
[1732892491210,0.27492,3635.0,3634.3,8.5697]
[1732892491410,2.6181814,3635.1,3634.3,8.84466]
[1732892491611,0.27494,3634.8,3634.3,8.5697]
[1732892491812,9.0558087,3635.1,3634.3,8.5697]
[1732892492120,0.27494,3634.7,3634.3,8.5697]
[1732892492415,2.8931214,3634.7,3634.3,7.6778]
[1732892492615,3.48274,3634.8,3634.4,1.7501]
[1732892492808,0.27495,3634.6,3634.4,1.7501]
[1732892493314,3.2078,3634.8,3634.4,1.7501]
[1732892493619,2.48967998,3634.5,3634.4,0.9025]
[1732892493816,0.27496,3634.4,3634.3,3.2078]
[1732892494016,0.27496,3634.4,3634.3,4.9478]
[1732892494219,0.27496,3634.4,3634.3,1.74]
[1732892494917,8.65235728,3634.5,3634.0,0.8264]
[1732892495109,2.48970998,3634.1,3634.0,1.4064]
[1732892495617,8.92733728,3634.1,3634.0,1.4064]
[1732892496016,8.92733728,3634.1,3634.0,0.58]
[1732892496017,2.48970998,3634.1,3634.0,0.58]
[1732892496515,10.00025517,3634.1,3634.0,0.58]
[1732892497315,2.48968998,3634.1,3634.0,0.58]
[1732892498211,11.07319305,3634.1,3634.0,0.58]
[1732892498417,2.48968998,3634.1,3634.0,0.58]
[1732892499014,11.07319305,3634.1,3634.0,0.58]
[1732892499317,2.48968998,3634.1,3634.0,0.58]
[1732892501617,12.14613094,3634.1,3634.0,1e-08]
[1732892501816,11.87117094,3634.1,3633.5,0.8264]
[1732892502017,9.78413926,3633.7,3633.5,1.3764]
[1732892502316,10.05913926,3633.7,3633.5,1.3764]
[1732892502516,0.275,3633.6,3633.5,1.3764]
[1732892502815,16.271841,3633.7,3633.5,1.3764]
[1732892503016,6.48770174,3634.2,3633.5,1.3764]
[1732892503317,6.48770174,3634.3,3634.0,0.27497]
[1732892503519,6.48770174,3634.3,3634.1,0.9093]
[1732892504017,6.48770174,3634.2,3634.1,0.9093]
[1732892504520,6.48770174,3634.3,3634.1,1.18426]
[1732892504923,8.70243172,3634.4,3634.1,1.18426]
[1732892505115,6.48770174,3634.3,3634.1,1.18426]
[1732892505317,6.48770174,3634.3,3634.1,0.9093]
[1732892505716,6.48770174,3634.3,3634.1,1.18426]
[1732892506020,6.48770174,3634.3,3634.1,0.9093]
[1732892506423,6.48770174,3634.2,3634.1,0.9093]
[1732892507522,6.48770174,3634.3,3634.1,0.9093]
[1732892507724,6.48770174,3634.2,3634.1,0.9093]
[1732892508726,6.48770174,3634.3,3634.1,5.0893]
[1732892509125,6.48770174,3634.3,3634.1,8.2971]
[1732892510226,8.97738172,3634.4,3634.1,8.2971]
[1732892510422,8.70243172,3634.4,3634.1,8.2971]
[1732892510628,8.97738172,3634.4,3634.1,8.2971]
[1732892510832,8.70243172,3634.4,3634.1,8.2971]
[1732892511023,6.48770174,3634.3,3634.1,8.2971]
[1732892511228,6.48770174,3634.3,3634.1,8.57206]
[1732892511528,6.48770174,3634.3,3634.2,0.8425]
[1732892511926,2.48966998,3634.4,3634.1,4.1171]
[1732892512125,6.48691421,3634.2,3634.1,6.1871]
[1732892513531,6.76187421,3634.2,3634.1,6.1871]
[1732892513732,0.27496,3634.2,3634.1,5.2778]
[1732892513932,0.27496,3634.2,3634.1,2.07]
[1732892513933,7.84436928,3634.2,3634.1,2.07]
[1732892514126,3.2078,3634.2,3633.7,0.8932]
[1732892514333,6.48755256,3633.8,3633.7,2.6132]
[1732892514824,6.48755256,3633.9,3633.7,2.6132]
[1732892515228,6.48755256,3633.8,3633.7,2.6132]
[1732892515732,6.48755256,3633.9,3633.7,2.6132]
[1732892515923,7.56881132,3634.1,3633.7,5.821]
[1732892515924,6.48755256,3633.8,3633.7,5.821]
[1732892517526,7.56881132,3634.0,3633.7,5.821]
[1732892517527,6.48755256,3633.9,3633.7,5.821]
[1732892517724,6.48755256,3633.8,3633.7,5.821]
[1732892517924,6.48755256,3634.0,3633.7,5.821]
[1732892518526,6.48755256,3634.0,3633.7,6.09599]
[1732892518926,6.48755256,3634.0,3633.7,5.821]
[1732892519128,6.48755256,3634.0,3633.7,6.09599]
[1732892519531,6.48755256,3634.0,3633.7,5.821]
[1732892519724,8.70228254,3634.0,3633.7,5.821]
[1732892519929,8.70228254,3634.0,3633.7,6.09599]
[1732892520329,6.48755256,3634.1,3633.7,5.821]
[1732892520528,7.56881132,3634.3,3633.9,0.27498]
[1732892520529,6.48755256,3634.2,3633.9,0.27498]
[1732892520835,6.48755256,3634.3,3634.1,3.48277]
[1732892521025,6.48755256,3634.3,3634.1,3.2078]
[1732892521225,6.48755256,3634.3,3634.0,0.27499]
[1732892521527,6.48755256,3634.3,3634.2,0.27498]
[1732892521732,6.48755256,3634.3,3634.2,0.69498]
[1732892521934,6.48755256,3634.5,3634.3,0.27497]
[1732892522427,6.48755256,3634.5,3634.4,1.8243]
[1732892522428,6.48687313,3634.5,3634.4,1.8243]
[1732892522821,8.70160311,3634.5,3634.4,1.8243]
[1732892523025,2.48967998,3634.5,3634.4,1.8243]
[1732892523225,10.0584913,3634.5,3634.4,0.9181]
[1732892523431,9.7835413,3634.5,3634.4,0.9181]
[1732892524334,10.0584913,3634.5,3634.4,0.9181]
[1732892524521,12.67725996,3634.5,3633.6,3.2078]
[1732892524736,2.21472998,3633.8,3633.6,3.2078]
[1732892524930,6.48788773,3633.7,3633.6,3.2078]
[1732892525135,7.56920236,3633.7,3633.6,3.2078]
[1732892526629,7.84421236,3633.7,3633.6,3.2078]
[1732892526826,0.27504,3633.3,3633.2,3.2078]
[1732892527023,0.27507,3632.9,3632.8,0.9276]
[1732892527234,0.27511,3632.5,3632.1,1.8747]
[1732892527534,6.48942839,3632.4,3632.1,1.8747]
[1732892528032,6.48942839,3632.4,3632.3,3.2078]
[1732892528633,8.70415837,3632.5,3632.3,3.2078]
[1732892528834,8.97926837,3632.5,3632.3,3.2078]
[1732892529225,6.76453839,3632.4,3632.3,3.2078]
[1732892529429,0.27512,3632.3,3631.7,0.9207]
[1732892529636,2.21472998,3632.1,3631.7,0.9207]
[1732892530624,0.27516,3631.8,3631.7,0.9207]
[1732892530935,2.21472998,3632.1,3631.7,0.9207]
[1732892530936,6.47683752,3632.0,3631.7,0.9207]
[1732892531135,8.6915675,3632.1,3631.7,0.9207]
[1732892531328,0.27515,3632.0,3631.7,0.9207]
[1732892531632,0.27515,3632.0,3631.4,0.9656]
[1732892531937,2.21472998,3632.1,3631.6,3.2078]
[1732892532331,2.48986998,3632.1,3631.6,3.2078]
[1732892532632,2.21472998,3632.1,3631.7,0.27516]
[1732892532832,2.21472998,3632.1,3632.0,3.2078]
[1732892534029,2.48985998,3632.1,3631.5,0.9589]
[1732892534237,2.21472998,3631.7,3631.5,0.9589]
[1732892535338,2.48988998,3631.7,3631.5,0.9589]
[1732892535530,0.27517,3631.6,3631.5,0.9589]
[1732892535930,2.48989998,3631.7,3631.5,0.9589]
[1732892536237,0.27517,3631.6,3631.5,0.9589]
[1732892536440,2.21472998,3631.7,3631.5,0.9589]
[1732892537038,2.21472998,3631.7,3631.4,3.2078]
[1732892537436,0.27517,3631.6,3631.4,3.2078]
[1732892537637,2.21472998,3631.5,3630.5,3.2078]
[1732892537844,2.21472998,3630.6,3630.5,3.2078]
[1732892538229,2.21472998,3631.1,3630.5,3.2078]
[1732892538529,2.21472998,3631.1,3630.6,0.27524]
[1732892538732,2.21472998,3631.1,3630.5,3.48305]
[1732892539151,2.21472998,3631.1,3630.5,3.2078]
[1732892539438,2.21472998,3631.1,3630.5,4.3278]
[1732892539645,2.21472998,3631.1,3630.7,0.27523]
[1732892539835,2.21472998,3631.1,3630.5,4.3278]
[1732892539836,2.21472998,3631.1,3630.5,3.2078]
[1732892540037,2.21472998,3631.1,3630.6,0.27525]
[1732892540243,2.21472998,3630.7,3630.5,3.2078]
[1732892540440,2.21472998,3630.7,3630.5,3.7378]
[1732892540642,2.21472998,3630.7,3630.5,3.2078]
[1732892540643,0.27524,3630.6,3630.5,3.2078]
[1732892541243,2.21472998,3630.7,3630.5,3.2078]
[1732892541939,2.48995998,3630.7,3630.5,3.2078]
[1732892542238,0.27524,3630.6,3630.5,3.2078]
[1732892542434,0.27524,3630.6,3629.8,0.8881]
[1732892542435,0.27526,3630.4,3629.9,3.2078]
[1732892542638,2.21472998,3630.2,3629.9,3.2078]
[1732892542841,2.21472998,3630.2,3629.9,3.8078]
[1732892543247,2.21472998,3630.2,3629.9,4.08309]
[1732892543439,2.21472998,3630.2,3629.9,3.8078]
[1732892543640,2.21472998,3630.2,3630.1,0.27528]
[1732892543843,2.21472998,3630.6,3629.9,3.2078]
[1732892544046,2.21472998,3630.6,3630.2,0.27526]
[1732892544243,2.21472998,3630.6,3629.9,3.2078]
[1732892544440,2.21472998,3630.2,3629.9,3.5678]
[1732892545346,0.27528,3630.1,3629.9,3.5678]
[1732892545543,2.21472998,3630.2,3629.9,3.5678]
[1732892546745,0.27527,3630.1,3629.9,3.5678]
[1732892546944,2.48998998,3630.2,3629.9,3.5678]
[1732892547145,2.21472998,3630.2,3629.9,3.5678]
[1732892547449,2.21472998,3630.2,3630.0,0.27527]
[1732892547643,2.21472998,3630.2,3630.0,1.5]
[1732892548051,2.21472998,3630.2,3630.0,1.77527]
[1732892548257,2.21472998,3630.2,3630.0,1.5]
[1732892548555,2.21472998,3630.2,3629.5,0.68828]
[1732892548556,2.21472998,3630.2,3629.5,3.2078]
[1732892548845,2.21472998,3629.6,3629.5,4.4678]
[1732892549238,2.21472998,3630.4,3629.5,4.4678]
[1732892549437,2.21472998,3630.4,3630.0,3.2078]
[1732892549753,2.21472998,3630.8,3630.7,0.27522]
[1732892550342,1.44044036,3631.8,3631.1,0.27519]
[1732892550343,2.21472998,3631.2,3631.1,0.27519]
[1732892550539,2.21472998,3631.2,3631.1,3.48299]
[1732892550743,2.48990998,3631.2,3631.1,3.2078]
[1732892551139,2.21472998,3631.2,3630.6,4.0746]
[1732892551341,2.21472998,3630.8,3630.6,7.8546]
[1732892551739,2.21472998,3630.8,3630.6,6.9878]
[1732892551943,0.27522,3630.7,3630.6,6.9878]
[1732892552342,0.68809,3630.5,3629.7,3.48309]
[1732892552538,0.68809,3630.5,3629.7,3.2078]
[1732892552539,2.21472998,3629.9,3629.7,3.2078]
[1732892552738,0.27529,3629.8,3629.7,3.2078]
[1732892553945,0.27529,3629.8,3629.2,1.868]
[1732892554138,0.27529,3629.8,3628.6,3.2078]
[1732892554139,2.21472998,3629.3,3628.6,3.2078]
[1732892554338,2.21472998,3628.7,3628.6,4.8278]
[1732892554649,2.21472998,3628.7,3628.6,6.2278]
[1732892556449,2.49009998,3628.7,3628.6,6.2278]
[1732892556645,2.49009998,3628.7,3628.6,3.2078]
[1732892557944,0.2754,3628.4,3627.6,1.7541]
[1732892558143,2.21472998,3628.0,3627.7,3.2078]
[1732892558343,2.49015998,3628.0,3627.7,4.2278]
[1732892558543,2.21472998,3628.0,3627.7,4.2278]
[1732892559347,2.21472998,3628.0,3627.7,3.2078]
[1732892559851,2.21472998,3628.0,3627.7,3.48324]
[1732892560247,2.21472998,3628.0,3627.7,3.2078]
[1732892560547,2.21472998,3628.0,3627.7,44.0078]
[1732892560748,2.21472998,3628.0,3627.8,0.27543]
[1732892561246,2.21472998,3628.2,3627.7,44.0078]
[1732892561446,2.21472998,3628.2,3628.1,3.48322]
[1732892561642,2.21472998,3628.6,3628.1,3.2078]
[1732892561847,2.21472998,3628.2,3628.1,3.2078]
[1732892562043,2.21472998,3628.2,3628.1,3.48322]
[1732892562352,2.62602062,3628.3,3628.1,3.48322]
[1732892562746,2.62602062,3628.3,3628.2,0.27541]
[1732892563147,0.68815,3630.2,3628.2,5.96]
[1732892563451,7.57099979,3632.0,3628.2,5.96]
[1732892563452,2.62602062,3630.0,3629.6,3.2078]
[1732892563662,2.62602062,3630.0,3629.9,0.27528]
[1732892564948,2.62602062,3630.0,3629.8,0.9292]
[1732892565149,2.62602062,3630.0,3629.9,0.27528]
[1732892565350,2.62602062,3630.0,3629.8,1.20448]
[1732892565653,2.62602062,3630.0,3629.7,0.8832]
[1732892565851,2.62602062,3630.0,3629.7,0.55]
[1732892566051,0.27529,3629.8,3629.7,0.55]
[1732892566966,2.62602062,3630.0,3629.2,3.2078]
[1732892567151,2.62602062,3629.3,3629.2,3.2078]
[1732892567962,1.165,3629.8,3629.3,0.27533]
[1732892567963,2.62602062,3629.7,3629.3,0.27533]
[1732892568149,2.62602062,3629.7,3629.2,3.2078]
[1732892568550,2.62602062,3629.7,3629.3,0.27533]
[1732892569761,2.62602062,3629.7,3629.4,0.27532]
[1732892570056,2.62602062,3629.7,3629.2,3.2078]
[1732892570356,0.27531,3629.6,3629.2,7.2178]
[1732892570748,2.62602062,3629.3,3629.2,7.2178]
[1732892571161,2.90135062,3629.3,3629.2,7.2178]
[1732892571354,2.62602062,3629.3,3629.2,7.2178]
[1732892571755,2.62602062,3629.7,3629.2,7.2178]
[1732892572056,2.62602062,3629.7,3629.6,3.2078]
[1732892572252,0.27559977,3630.5,3629.6,6.0731]
[1732892572451,2.62602062,3630.1,3630.0,0.27527]
[1732892572660,2.62602062,3630.1,3629.9,2.6857]
[1732892572957,2.62602062,3630.1,3630.0,0.27527]
[1732892573151,2.62602062,3630.5,3629.9,2.6857]
[1732892573454,0.9277,3631.1,3630.2,3.2078]
[1732892573455,2.62602062,3631.1,3630.2,3.2078]
[1732892573656,2.62602062,3631.1,3630.8,3.2078]
[1732892574060,0.2752,3630.9,3630.8,3.2078]
[1732892575056,1.148,3631.4,3630.8,3.2078]
[1732892575263,2.62602062,3631.1,3630.8,3.2078]
[1732892575755,2.62602062,3631.1,3630.4,3.2078]
[1732892575959,0.27523,3630.5,3630.4,3.8178]
[1732892576260,2.62602062,3630.6,3630.4,3.8178]
[1732892577957,0.27523,3630.5,3630.4,3.8178]
[1732892578156,0.27523,3630.5,3630.4,3.2078]
[1732892578564,0.27522,3630.8,3630.4,3.2078]
[1732892578865,0.27521,3630.9,3630.4,3.2078]
[1732892579459,0.2752,3630.9,3630.4,3.2078]
[1732892579768,2.62602062,3630.6,3630.4,3.2078]
[1732892580261,0.27523,3630.5,3630.4,3.2078]
[1732892580461,2.90125062,3630.6,3630.4,3.2078]
[1732892580666,2.62602062,3630.6,3630.4,3.2078]
[1732892580862,3.77402062,3631.0,3630.4,3.2078]
[1732892581162,2.90125062,3630.6,3630.4,3.2078]
[1732892581361,2.62602062,3630.6,3630.4,3.2078]
[1732892581957,2.90116062,3631.8,3631.2,0.27518]
[1732892582155,2.62602062,3631.8,3631.3,0.8832]
[1732892582354,2.62602062,3631.4,3631.3,0.8832]
[1732892582559,2.62602062,3631.4,3630.7,3.2078]
[1732892582765,3.2078,3631.6,3630.2,4.36625]
[1732892582766,0.2752,3630.9,3630.2,4.36625]
[1732892583059,2.62602062,3631.0,3630.2,5.871]
[1732892583263,0.27521,3630.9,3630.2,5.871]
[1732892583958,2.62602062,3631.0,3630.2,5.871]
[1732892584158,2.62602062,3630.6,3630.2,5.871]
[1732892584463,2.62602062,3630.6,3630.2,4.091]
[1732892584659,0.27525,3630.3,3630.2,3.2078]
[1732892584966,1.8361,3630.5,3629.3,3.2078]
[1732892585164,0.27531,3629.6,3629.3,6.5578]
[1732892585363,2.62602062,3630.0,3629.3,3.35]
[1732892585662,0.27532,3629.4,3629.3,3.35]
[1732892585862,3.31421062,3630.0,3629.3,3.35]
[1732892586165,2.62602062,3630.0,3629.3,3.35]
[1732892586661,0.27532,3629.4,3629.3,3.35]
[1732892587062,2.90134062,3629.4,3629.3,3.35]
[1732892587560,2.90128062,3630.2,3629.5,0.2753]
[1732892587866,2.90145263,3631.0,3629.8,3.2078]
[1732892588069,2.90145263,3631.0,3630.5,3.2078]
[1732892588070,0.27521,3630.9,3630.5,3.2078]
[1732892588261,5.83382062,3631.4,3630.9,0.2752]
[1732892588560,5.83382062,3631.4,3630.9,3.2078]
[1732892588561,0.27517,3631.1,3630.9,3.2078]
[1732892588762,2.62602062,3631.4,3630.9,3.2078]
[1732892589066,0.27544036,3631.6,3630.4,3.2078]
[1732892589067,0.27521,3630.5,3630.4,3.2078]
[1732892589263,0.68795,3630.9,3630.4,5.0878]
[1732892589264,2.62602062,3630.9,3630.4,5.0878]
[1732892589469,0.27519,3630.7,3630.4,5.0878]
[1732892589664,2.62602062,3630.9,3630.4,5.0878]
[1732892590061,0.27518,3631.0,3630.4,5.36301]
[1732892590262,3.2078,3631.2,3630.4,5.0878]
[1732892590263,0.27518,3630.9,3630.4,5.0878]
[1732892590561,3.2078,3631.2,3630.4,5.0878]
[1732892590762,3.2078,3631.2,3630.4,5.36301]
[1732892590956,0.27517,3631.0,3630.5,0.9074]
[1732892591159,3.2078,3631.2,3630.5,1.8874]
[1732892591160,0.27518,3630.9,3630.5,1.8874]
[1732892591362,0.27517,3631.0,3630.5,1.8874]
[1732892591562,0.27518,3630.9,3630.5,2.823]
[1732892591762,3.2078,3631.2,3630.5,2.823]
[1732892591967,0.27518,3630.9,3630.5,2.823]
[1732892592165,0.27519,3630.8,3630.5,2.823]
[1732892592364,3.2078,3631.2,3630.5,2.823]
[1732892592365,0.2752,3630.7,3630.5,2.823]
[1732892592566,0.2752,3630.6,3630.5,0.98]
[1732892592870,0.2752,3630.7,3630.5,0.98]
[1732892593164,0.2752,3630.6,3630.5,0.98]
[1732892593365,2.62602062,3630.9,3630.4,3.2078]
[1732892593561,0.908,3631.1,3630.5,0.2752]
[1732892593562,0.27517,3631.1,3630.5,0.2752]
[1732892593770,0.27517,3631.1,3630.4,10.5778]
[1732892593771,4.3558,3631.2,3630.4,3.2078]
[1732892593965,0.27519,3630.8,3630.4,10.6478]
[1732892594470,2.62602062,3630.9,3630.4,10.6478]
[1732892595267,0.27519,3630.8,3630.4,10.6478]
[1732892595563,2.62602062,3630.9,3630.4,10.6478]
[1732892595765,0.2752,3630.7,3630.4,10.6478]
[1732892595966,0.27521,3630.5,3630.4,10.6478]
[1732892596357,2.90123062,3630.5,3630.4,7.44]
[1732892596763,0.27526,3629.8,3629.7,3.2078]
[1732892596959,2.62602062,3629.9,3629.4,0.8933]
[1732892597161,2.62602062,3629.9,3629.2,3.2078]
[1732892597465,3.89593,3630.0,3629.2,3.2078]
[1732892597466,0.2753,3629.3,3629.2,3.9878]
[1732892598669,0.2753,3629.4,3629.2,3.9878]
[1732892598871,2.90131062,3629.5,3629.2,3.9878]
[1732892599070,0.2753,3629.3,3629.2,3.9878]
[1732892600569,3.57602062,3629.9,3629.2,3.9878]
[1732892600765,0.27528,3629.6,3629.2,3.9878]
[1732892601070,0.27528,3629.6,3629.3,0.8746]
[1732892601271,0.27529,3629.4,3629.3,0.8746]
[1732892601569,0.2753,3629.3,3629.2,3.2078]
[1732892601760,0.2753,3629.3,3629.2,3.8378]
[1732892604377,0.27529,3629.4,3629.2,3.8378]
[1732892604571,3.73002062,3629.5,3629.2,3.8378]
[1732892604768,0.2753,3629.3,3629.2,3.8378]
[1732892605272,0.2753,3629.3,3629.2,3.2078]
[1732892605481,5.68826,3629.3,3628.5,0.9015]
[1732892605770,0.27535,3628.6,3628.5,0.9015]
[1732892606279,2.62602062,3628.8,3628.5,0.9015]
[1732892607372,2.62602062,3628.8,3628.5,1.17686]
[1732892607572,2.62602062,3628.8,3628.5,3.9515]
[1732892608775,1.104,3629.2,3628.5,3.9515]
[1732892608776,3.73002062,3629.2,3628.5,3.9515]
[1732892608978,3.73002062,3629.2,3628.8,0.27533]
[1732892609277,3.73002062,3629.2,3628.8,1.55]
[1732892609278,0.27531,3629.1,3628.8,1.55]
[1732892609484,2.62602062,3629.2,3628.8,1.55]
[1732892609770,2.62602062,3629.2,3628.9,0.27532]
[1732892609976,6.47683752,3630.2,3629.1,3.2078]
[1732892610167,8.65075346,3630.6,3630.1,0.27523]
[1732892610168,0.2752,3630.6,3630.1,0.27523]
[1732892610367,0.27519,3630.7,3630.2,2.01172]
[1732892610577,2.90121062,3630.8,3630.3,0.27522]
[1732892610877,2.62602062,3630.4,3630.3,2.22]
[1732892612074,2.62602062,3630.4,3630.3,2.49522]
[1732892612676,2.62602062,3630.4,3630.3,2.22]
[1732892613075,2.90123062,3630.4,3630.3,2.22]
[1732892613375,2.62602062,3631.0,3630.3,2.22]
[1732892613575,0.27519,3630.8,3630.4,0.872]
[1732892613892,0.27518,3630.9,3630.4,4.90721]
[1732892614081,2.62602062,3631.0,3630.5,0.9395]
[1732892614285,2.62602062,3631.0,3630.5,4.9095]
[1732892614286,0.27519,3630.8,3630.5,4.9095]
[1732892614473,2.62602062,3630.6,3630.5,4.9095]
[1732892614672,2.90122062,3630.6,3630.5,4.9095]
[1732892615073,2.62602062,3630.6,3630.5,4.9095]
[1732892615280,2.90122062,3630.6,3630.5,3.97]
[1732892615678,0.27523,3630.2,3630.1,3.2078]
[1732892615876,0.27523,3630.2,3629.3,4.1538]
[1732892615877,0.6881,3630.1,3629.3,4.1538]
[1732892616183,2.62602062,3629.7,3629.3,2.596]
[1732892616380,0.27528,3629.5,3629.3,2.596]
[1732892616586,2.62602062,3629.7,3629.3,1.65]
[1732892616781,0.27529,3629.4,3629.3,1.65]
[1732892617078,3.31420062,3629.7,3628.9,3.2078]
[1732892617079,1.104,3629.6,3628.9,3.2078]
[1732892617276,0.2753,3629.3,3628.9,11.4778]
[1732892617672,1.104,3629.6,3628.9,11.4778]
[1732892617882,2.62602062,3630.1,3628.9,16.4778]
[1732892618187,2.62602062,3630.5,3630.0,0.27524]
[1732892618483,8.67499979,3630.9,3630.0,0.27524]
[1732892618484,9.10285814,3631.7,3630.2,3.2078]
[1732892618692,9.10285814,3631.7,3630.8,3.2078]
[1732892618983,2.62602062,3631.3,3630.8,8.6178]
[1732892619188,0.27516,3631.1,3630.8,5.41]
[1732892619481,2.90117062,3631.3,3630.8,5.41]
[1732892619679,2.62602062,3630.9,3630.8,5.41]
[1732892619880,2.90119062,3630.9,3630.8,5.41]
[1732892620293,0.27517,3631.1,3630.8,5.41]
[1732892620477,7.40283752,3631.2,3630.8,5.41]
[1732892620676,0.27517,3631.0,3630.8,5.41]
[1732892620884,0.27517,3630.9,3630.8,5.41]
[1732892621678,2.90119062,3630.9,3630.8,5.41]
[1732892621985,2.90120062,3630.9,3630.4,3.2078]
[1732892622186,0.27519,3630.8,3630.4,4.2078]
[1732892622388,0.27519,3630.7,3630.4,4.2078]
[1732892622784,2.62602062,3630.9,3630.4,4.2078]
[1732892623291,0.2752,3630.5,3630.4,4.2078]
[1732892623590,2.90122062,3630.5,3630.4,3.2078]
[1732892624088,2.90122062,3630.5,3629.9,3.2078]
[1732892624089,0.27525,3630.0,3629.9,3.2078]
[1732892624288,0.27525,3630.0,3629.4,3.48308]
[1732892624479,0.27525,3630.0,3629.4,11.66308]
[1732892624684,0.27524,3630.1,3629.5,0.27528]
[1732892624890,4.1404,3630.4,3629.5,7.59]
[1732892625291,0.27521,3630.5,3629.9,3.48305]
[1732892625494,1.16,3630.6,3630.0,0.9096]
[1732892625688,1.16,3630.6,3630.0,8.8596]
[1732892625986,1.4352,3630.6,3630.0,9.13484]
[1732892626195,0.27521,3630.5,3630.0,8.8596]
[1732892626496,7.92642062,3630.9,3630.0,0.9096]
[1732892626690,0.27524,3630.1,3630.0,0.9096]
[1732892626896,2.62602062,3630.1,3629.9,3.2078]
[1732892627193,2.62602062,3630.1,3629.9,4.0578]
[1732892627194,0.27524,3630.0,3629.9,4.0578]
[1732892627593,0.27524,3630.0,3629.9,0.85]
[1732892627891,2.35534,3630.0,3629.9,0.85]
[1732892630690,1.16,3630.0,3629.9,0.85]
[1732892631094,5.3181,3630.4,3629.9,0.85]
[1732892631494,0.27524,3630.1,3629.9,0.85]
[1732892631692,5.3181,3630.4,3629.9,0.85]
[1732892631894,0.27524,3630.0,3629.9,0.85]
[1732892632500,2.90126062,3630.1,3629.9,0.85]
[1732892632697,2.62602062,3630.1,3629.9,0.85]
[1732892632893,2.62602062,3630.1,3629.5,3.2078]
[1732892632894,0.27527,3629.6,3629.5,3.2078]
[1732892633094,3.2078,3629.7,3628.9,3.2078]
[1732892633304,2.90127062,3630.0,3629.4,0.27529]
[1732892633500,2.90126062,3630.0,3629.3,3.2078]
[1732892633801,2.90126062,3630.0,3629.4,0.27529]
[1732892634000,2.62602062,3630.0,3629.7,0.27527]